[Event "Titled Tuesday Blitz May 30 Early 2023"]
[White "hakanazeri2"]
[Black "FunnyDuck66"]
[WhiteElo "2540"]
[BlackElo "2251"]
[Result "0-1"]
[Round "03"]
[TimeControl "180+2"]
[Date "2023.05.30"]
[WhiteClock "0:00:00"]
[BlackClock "0:00:15"]

1. e4 {[%clk 0:02:56]}  c6 {[%clk 0:02:59]} 2. d4 {[%clk 0:02:56]}  d5 {[%clk 0:02:59]} 3. Nc3 {[%clk 0:02:57]}  dxe4 {[%clk 0:02:59]} 4. Nxe4 {[%clk 0:02:58]}  Nf6 {[%clk 0:02:58]} 5. Nxf6+ {[%clk 0:02:58]}  exf6 {[%clk 0:02:59]} 6. c3 {[%clk 0:02:59]}  Bd6 {[%clk 0:03:00]} 7. Bd3 {[%clk 0:02:59]}  Na6 {[%clk 0:03:00]} 8. Qc2 {[%clk 0:03:00]}  h5 {[%clk 0:03:00]} 9. Ne2 {[%clk 0:02:59]}  Nc7 {[%clk 0:03:00]} 10. Bf4 {[%clk 0:02:58]}  Nd5 {[%clk 0:03:00]} 11. Bxd6 {[%clk 0:02:58]}  Qxd6 {[%clk 0:03:01]} 12. O-O-O {[%clk 0:02:53]}  Be6 {[%clk 0:03:00]} 13. Ng3 {[%clk 0:02:50]}  Kf8 {[%clk 0:02:56]} 14. a3 {[%clk 0:02:48]}  b5 {[%clk 0:02:56]} 15. Ne4 {[%clk 0:02:47]}  Qc7 {[%clk 0:02:55]} 16. Nc5 {[%clk 0:02:46]}  Nb6 {[%clk 0:02:52]} 17. Nxe6+ {[%clk 0:02:39]}  fxe6 {[%clk 0:02:52]} 18. Rhe1 {[%clk 0:02:40]}  Qd6 {[%clk 0:02:48]} 19. g3 {[%clk 0:02:36]}  a5 {[%clk 0:02:40]} 20. Qe2 {[%clk 0:02:00]}  Kf7 {[%clk 0:02:11]} 21. Qe4 {[%clk 0:01:44]}  f5 {[%clk 0:01:48]} 22. Qe5 {[%clk 0:01:35]}  Qxe5 {[%clk 0:01:48]} 23. Rxe5 {[%clk 0:01:36]}  g6 {[%clk 0:01:41]} 24. Rde1 {[%clk 0:01:30]}  Rhe8 {[%clk 0:01:40]} 25. f4 {[%clk 0:01:27]}  Kf6 {[%clk 0:01:35]} 26. R5e2 {[%clk 0:01:25]}  a4 {[%clk 0:01:30]} 27. h3 {[%clk 0:01:20]}  Nd5 {[%clk 0:01:26]} 28. Rf2 {[%clk 0:01:04]}  Rh8 {[%clk 0:01:01]} 29. Rg1 {[%clk 0:00:45]}  Rag8 {[%clk 0:00:48]} 30. h4 {[%clk 0:00:17]}  Rb8 {[%clk 0:00:37]} 31. Kd2 {[%clk 0:00:17]}  Rhe8 {[%clk 0:00:35]} 32. Ke2 {[%clk 0:00:17]}  Nb6 {[%clk 0:00:31]} 33. Kf3 {[%clk 0:00:16]}  Nc4 {[%clk 0:00:30]} 34. Re2 {[%clk 0:00:16]}  Re7 {[%clk 0:00:25]} 35. Rge1 {[%clk 0:00:16]}  Kf7 {[%clk 0:00:22]} 36. Rf2 {[%clk 0:00:15]}  Kf6 {[%clk 0:00:21]} 37. Ree2 {[%clk 0:00:05]}  Kf7 {[%clk 0:00:20]} 38. Kg2 {[%clk 0:00:05]}  Rd7 {[%clk 0:00:15]} 39. Bxc4 {[%clk 0:00:05]}  bxc4 {[%clk 0:00:16]} 40. Re5 {[%clk 0:00:04]}  Rd5 {[%clk 0:00:16]} 41. Ree2 {[%clk 0:00:03]}  Rdb5 {[%clk 0:00:16]} 42. Kf1 {[%clk 0:00:03]}  Ke7 {[%clk 0:00:15]} 43. Ke1 {[%clk 0:00:03]}  Kd7 {[%clk 0:00:16]} 44. Kd1 {[%clk 0:00:04]}  Rd5 {[%clk 0:00:14]} 45. Kc1 {[%clk 0:00:04]}  Kd6 {[%clk 0:00:13]} 46. Re3 {[%clk 0:00:05]}  Re8 {[%clk 0:00:12]} 47. Rfe2 {[%clk 0:00:05]}  Re7 {[%clk 0:00:13]} 48. Re5 {[%clk 0:00:05]}  Re8 {[%clk 0:00:13]} 49. Kc2 {[%clk 0:00:05]}  Re7 {[%clk 0:00:13]} 50. Rxd5+ {[%clk 0:00:04]}  cxd5 {[%clk 0:00:13]} 51. Re5 {[%clk 0:00:04]}  Re8 {[%clk 0:00:13]} 52. Kd2 {[%clk 0:00:04]}  Re7 {[%clk 0:00:13]} 53. Kc1 {[%clk 0:00:05]}  Re8 {[%clk 0:00:14]} 54. Re2 {[%clk 0:00:05]}  Re7 {[%clk 0:00:14]} 55. Kd1 {[%clk 0:00:06]}  Re8 {[%clk 0:00:15]} 56. Ke1 {[%clk 0:00:06]}  Re7 {[%clk 0:00:16]} 57. Kd1 {[%clk 0:00:07]}  Re8 {[%clk 0:00:16]} 58. b3 {[%clk 0:00:06]}  axb3 {[%clk 0:00:15]} 59. Kc1 {[%clk 0:00:06]}  Ra8 {[%clk 0:00:16]} 60. Kb2 {[%clk 0:00:07]}  Ra6 {[%clk 0:00:16]} 61. Rf2 {[%clk 0:00:08]}  Rb6 {[%clk 0:00:16]} 62. Re2 {[%clk 0:00:08]}  Ra6 {[%clk 0:00:17]} 63. Re1 {[%clk 0:00:08]}  Rb6 {[%clk 0:00:17]} 64. Ra1 {[%clk 0:00:09]}  Ra6 {[%clk 0:00:18]} 65. a4 {[%clk 0:00:09]}  Ra5 {[%clk 0:00:18]} 66. Ka3 {[%clk 0:00:09]}  Kc6 {[%clk 0:00:17]} 67. Rb1 {[%clk 0:00:09]}  Ra6 {[%clk 0:00:17]} 68. Kb4 {[%clk 0:00:09]}  Rb6+ {[%clk 0:00:16]} 69. Ka3 {[%clk 0:00:09]}  Ra6 {[%clk 0:00:17]} 70. Re1 {[%clk 0:00:09]}  Kd6 {[%clk 0:00:17]} 71. Ra1 {[%clk 0:00:07]}  Kc6 {[%clk 0:00:17]} 72. Rb1 {[%clk 0:00:06]}  Kd6 {[%clk 0:00:16]} 73. Kb4 {[%clk 0:00:07]}  Kc6 {[%clk 0:00:15]} 74. a5 {[%clk 0:00:07]}  Ra8 {[%clk 0:00:16]} 75. Rb2 {[%clk 0:00:06]}  Rb8+ {[%clk 0:00:16]} 76. Ka4 {[%clk 0:00:06]}  Ra8 {[%clk 0:00:16]} 77. Re2 {[%clk 0:00:07]}  Kd6 {[%clk 0:00:16]} 78. Rb2 {[%clk 0:00:06]}  Kc6 {[%clk 0:00:16]} 79. Rb1 {[%clk 0:00:07]}  Kd6 {[%clk 0:00:16]} 80. Kb5 {[%clk 0:00:06]}  Rb8+ {[%clk 0:00:16]} 81. Ka6 {[%clk 0:00:02]}  Kc6 {[%clk 0:00:15]} 82. Ka7 {[%clk 0:00:03]}  Rb7+ {[%clk 0:00:15]} 83. Ka8 {[%clk 0:00:01]}  Rb5 {[%clk 0:00:15]} 84. a6 {[%clk 0:00:02]}  Kb6 {[%clk 0:00:15]} 85. a7 {[%clk 0:00:01]}  Ra5 {[%clk 0:00:15]} 86. Kb8 {[%clk 0:00:00]}  Rxa7 {[%clk 0:00:15]} 0-1


[Site "https://www.chess.com"]

[Event "Titled Tuesday Blitz May 30 Early 2023"]
[White "Coelho, Ramyres Santana"]
[Black "Shvedova, Alexandra"]
[WhiteFideId "2120690"]
[BlackFideId "54154782"]
[WhiteElo "1888"]
[BlackElo "1973"]
[Result "0-1"]
[Round "03"]
[TimeControl "180+2"]
[Date "2023.05.30"]
[WhiteClock "0:00:00"]
[BlackClock "0:00:24"]

1. e4 {[%clk 0:02:24]}  c5 {[%clk 0:02:58]} 2. Nf3 {[%clk 0:02:24]}  Nc6 {[%clk 0:02:58]} 3. d4 {[%clk 0:02:23]}  cxd4 {[%clk 0:02:59]} 4. c3 {[%clk 0:02:24]}  dxc3 {[%clk 0:02:58]} 5. Nxc3 {[%clk 0:02:25]}  d6 {[%clk 0:02:55]} 6. h3 {[%clk 0:02:23]}  Nf6 {[%clk 0:02:54]} 7. Bc4 {[%clk 0:02:20]}  e6 {[%clk 0:02:51]} 8. O-O {[%clk 0:02:14]}  Be7 {[%clk 0:02:51]} 9. Qe2 {[%clk 0:02:11]}  a6 {[%clk 0:02:47]} 10. Rd1 {[%clk 0:02:05]}  Qc7 {[%clk 0:02:47]} 11. Bf4 {[%clk 0:01:57]}  O-O {[%clk 0:02:35]} 12. Rac1 {[%clk 0:01:56]}  b5 {[%clk 0:02:00]} 13. Nxb5 {[%clk 0:01:32]}  axb5 {[%clk 0:02:00]} 14. Bxb5 {[%clk 0:01:33]}  Bd7 {[%clk 0:01:52]} 15. Bxc6 {[%clk 0:01:30]}  Bxc6 {[%clk 0:01:51]} 16. Nd4 {[%clk 0:01:29]}  e5 {[%clk 0:01:43]} 17. Nxc6 {[%clk 0:01:12]}  exf4 {[%clk 0:01:41]} 18. e5 {[%clk 0:01:01]}  dxe5 {[%clk 0:01:34]} 19. Nxe5 {[%clk 0:00:59]}  Qb7 {[%clk 0:01:26]} 20. a3 {[%clk 0:00:55]}  Rac8 {[%clk 0:01:22]} 21. Rxc8 {[%clk 0:00:52]}  Rxc8 {[%clk 0:01:22]} 22. Nf3 {[%clk 0:00:45]}  Bf8 {[%clk 0:01:15]} 23. b4 {[%clk 0:00:40]}  Ne4 {[%clk 0:01:14]} 24. Qd3 {[%clk 0:00:32]}  Nc3 {[%clk 0:01:10]} 25. Rd2 {[%clk 0:00:23]}  Ne4 {[%clk 0:01:01]} 26. Rc2 {[%clk 0:00:20]}  Rxc2 {[%clk 0:00:54]} 27. Qxc2 {[%clk 0:00:21]}  g6 {[%clk 0:00:50]} 28. Qb3 {[%clk 0:00:17]}  Bc5 {[%clk 0:00:44]} 29. Ne5 {[%clk 0:00:11]}  Bxf2+ {[%clk 0:00:42]} 30. Kh2 {[%clk 0:00:11]}  Bg3+ {[%clk 0:00:41]} 31. Kh1 {[%clk 0:00:10]}  Qa7 {[%clk 0:00:35]} 32. Ng4 {[%clk 0:00:03]}  Nf2+ {[%clk 0:00:34]} 33. Nxf2 {[%clk 0:00:03]}  Qxf2 {[%clk 0:00:35]} 34. Qd1 {[%clk 0:00:03]}  f3 {[%clk 0:00:24]} 35. Qxf3 {[%clk 0:00:00]}  Qe1+ {[%clk 0:00:24]} 0-1


[Site "https://www.chess.com"]

[Event "Titled Tuesday Blitz May 30 Early 2023"]
[White "Tarnowska, Aleksandra"]
[Black "Aggelis, Nikolaos"]
[WhiteFideId "1180967"]
[BlackFideId "4213220"]
[WhiteElo "1776"]
[BlackElo "2189"]
[Result "0-1"]
[Round "03"]
[TimeControl "180+2"]
[Date "2023.05.30"]
[WhiteClock "0:00:02"]
[BlackClock "0:01:00"]

1. e4 {[%clk 0:03:00]}  c6 {[%clk 0:02:59]} 2. d4 {[%clk 0:03:00]}  d5 {[%clk 0:03:00]} 3. Nc3 {[%clk 0:02:58]}  dxe4 {[%clk 0:02:59]} 4. Nxe4 {[%clk 0:02:58]}  Nf6 {[%clk 0:03:00]} 5. Nxf6+ {[%clk 0:02:52]}  exf6 {[%clk 0:03:01]} 6. Nf3 {[%clk 0:02:52]}  Bd6 {[%clk 0:03:01]} 7. Be3 {[%clk 0:02:47]}  O-O {[%clk 0:03:00]} 8. Qd2 {[%clk 0:02:48]}  Nd7 {[%clk 0:02:54]} 9. Bd3 {[%clk 0:02:44]}  Re8 {[%clk 0:02:48]} 10. O-O-O {[%clk 0:02:38]}  a5 {[%clk 0:02:43]} 11. Nh4 {[%clk 0:02:32]}  g6 {[%clk 0:02:35]} 12. Rde1 {[%clk 0:01:52]}  b5 {[%clk 0:02:24]} 13. Bf4 {[%clk 0:01:36]}  Rxe1+ {[%clk 0:02:15]} 14. Rxe1 {[%clk 0:01:36]}  Bb4 {[%clk 0:02:15]} 15. c3 {[%clk 0:01:35]}  Bf8 {[%clk 0:02:15]} 16. Bh6 {[%clk 0:01:35]}  a4 {[%clk 0:02:06]} 17. Bxf8 {[%clk 0:01:25]}  Nxf8 {[%clk 0:02:07]} 18. a3 {[%clk 0:01:22]}  Be6 {[%clk 0:02:00]} 19. Qh6 {[%clk 0:01:19]}  Qd5 {[%clk 0:01:52]} 20. f4 {[%clk 0:01:06]}  b4 {[%clk 0:01:31]} 21. f5 {[%clk 0:00:30]}  bxc3 {[%clk 0:01:16]} 22. fxe6 {[%clk 0:00:19]}  cxb2+ {[%clk 0:01:15]} 23. Kb1 {[%clk 0:00:13]}  Nxe6 {[%clk 0:01:14]} 24. Nxg6 {[%clk 0:00:04]}  fxg6 {[%clk 0:01:14]} 25. Bxg6 {[%clk 0:00:04]}  hxg6 {[%clk 0:01:15]} 26. Qxg6+ {[%clk 0:00:05]}  Ng7 {[%clk 0:01:15]} 27. Re7 {[%clk 0:00:05]}  Qf5+ {[%clk 0:01:03]} 28. Qxf5 {[%clk 0:00:02]}  Nxf5 {[%clk 0:01:04]} 29. Rc7 {[%clk 0:00:02]}  Nxd4 {[%clk 0:01:04]} 30. Kxb2 {[%clk 0:00:01]}  Rb8+ {[%clk 0:01:03]} 31. Kc3 {[%clk 0:00:02]}  Nb5+ {[%clk 0:01:00]} 32. Kc4 {[%clk 0:00:02]} 0-1


[Site "https://www.chess.com"]

[Event "Titled Tuesday Blitz May 30 Early 2023"]
[White "Cramling Bellon, Anna"]
[Black "Baches Garcia, Guillermo"]
[WhiteFideId "32009232"]
[BlackFideId "2209764"]
[WhiteElo "1976"]
[BlackElo "2532"]
[Result "1/2-1/2"]
[Round "03"]
[TimeControl "180+2"]
[Date "2023.05.30"]
[WhiteClock "0:00:05"]
[BlackClock "0:00:09"]

1. d4 {[%clk 0:03:00]}  d5 {[%clk 0:03:00]} 2. c4 {[%clk 0:03:01]}  e6 {[%clk 0:03:00]} 3. Nc3 {[%clk 0:03:01]}  h6 {[%clk 0:03:01]} 4. cxd5 {[%clk 0:02:59]}  exd5 {[%clk 0:03:02]} 5. Bf4 {[%clk 0:03:00]}  Nf6 {[%clk 0:03:00]} 6. e3 {[%clk 0:03:00]}  Bd6 {[%clk 0:03:00]} 7. Bxd6 {[%clk 0:02:56]}  Qxd6 {[%clk 0:03:01]} 8. Bd3 {[%clk 0:02:56]}  O-O {[%clk 0:02:58]} 9. Nge2 {[%clk 0:02:51]}  c6 {[%clk 0:02:56]} 10. Ng3 {[%clk 0:02:48]}  Qe7 {[%clk 0:02:53]} 11. O-O {[%clk 0:02:48]}  Ne8 {[%clk 0:02:51]} 12. Rc1 {[%clk 0:02:44]}  Nd6 {[%clk 0:02:50]} 13. Bb1 {[%clk 0:02:29]}  Nd7 {[%clk 0:02:44]} 14. e4 {[%clk 0:02:19]}  dxe4 {[%clk 0:02:39]} 15. Ngxe4 {[%clk 0:02:16]}  Nxe4 {[%clk 0:02:33]} 16. Nxe4 {[%clk 0:02:13]}  Nb6 {[%clk 0:02:27]} 17. Qd3 {[%clk 0:02:06]}  Bf5 {[%clk 0:02:20]} 18. Rfe1 {[%clk 0:01:54]}  Rfe8 {[%clk 0:02:11]} 19. Qf3 {[%clk 0:01:39]}  Bg6 {[%clk 0:02:00]} 20. h3 {[%clk 0:01:27]}  Rad8 {[%clk 0:01:56]} 21. Qb3 {[%clk 0:00:54]}  Kh7 {[%clk 0:01:27]} 22. Bd3 {[%clk 0:00:30]}  Rxd4 {[%clk 0:01:15]} 23. Nf6+ {[%clk 0:00:27]}  Qxf6 {[%clk 0:01:13]} 24. Bxg6+ {[%clk 0:00:27]}  Qxg6 {[%clk 0:01:10]} 25. Rxe8 {[%clk 0:00:27]}  Qf6 {[%clk 0:01:02]} 26. Rce1 {[%clk 0:00:24]}  Rd2 {[%clk 0:00:59]} 27. R8e2 {[%clk 0:00:18]}  Rd5 {[%clk 0:00:58]} 28. Qc2+ {[%clk 0:00:17]}  g6 {[%clk 0:00:56]} 29. Re7 {[%clk 0:00:15]}  Rb5 {[%clk 0:00:36]} 30. R1e6 {[%clk 0:00:06]}  Qxe6 {[%clk 0:00:12]} 31. Rxe6 {[%clk 0:00:06]}  fxe6 {[%clk 0:00:12]} 32. a4 {[%clk 0:00:06]}  Rf5 {[%clk 0:00:11]} 33. b3 {[%clk 0:00:07]}  Nd5 {[%clk 0:00:11]} 34. Qe4 {[%clk 0:00:06]}  Rf6 {[%clk 0:00:11]} 35. g4 {[%clk 0:00:07]}  Kg7 {[%clk 0:00:11]} 36. h4 {[%clk 0:00:05]}  g5 {[%clk 0:00:11]} 37. hxg5 {[%clk 0:00:05]}  hxg5 {[%clk 0:00:12]} 38. Kg2 {[%clk 0:00:05]}  Nf4+ {[%clk 0:00:12]} 39. Kg3 {[%clk 0:00:05]}  Rf7 {[%clk 0:00:12]} 40. b4 {[%clk 0:00:05]}  Rd7 {[%clk 0:00:12]} 41. Qe5+ {[%clk 0:00:05]}  Kg6 {[%clk 0:00:12]} 42. Qb8 {[%clk 0:00:05]}  a6 {[%clk 0:00:08]} 43. Qg8+ {[%clk 0:00:05]}  Rg7 {[%clk 0:00:08]} 44. Qe8+ {[%clk 0:00:05]}  Rf7 {[%clk 0:00:08]} 45. Qg8+ {[%clk 0:00:04]}  Rg7 {[%clk 0:00:08]} 46. Qe8+ {[%clk 0:00:04]}  Rf7 {[%clk 0:00:09]} 47. Qg8+ {[%clk 0:00:05]}  Rg7 {[%clk 0:00:09]} 1/2-1/2


[Site "https://www.chess.com"]

[Event "Titled Tuesday Blitz May 30 Early 2023"]
[White "Chylewski, Patryk"]
[Black "Lonoff, Marc"]
[WhiteFideId "1186191"]
[BlackFideId "2001349"]
[WhiteElo "2163"]
[BlackElo "2127"]
[Result "0-1"]
[Round "03"]
[TimeControl "180+2"]
[Date "2023.05.30"]
[WhiteClock "0:00:02"]
[BlackClock "0:00:03"]

1. e4 {[%clk 0:03:00]}  e6 {[%clk 0:02:59]} 2. d4 {[%clk 0:03:00]}  d5 {[%clk 0:02:59]} 3. Nd2 {[%clk 0:03:00]}  Nc6 {[%clk 0:02:56]} 4. Ngf3 {[%clk 0:02:58]}  Nf6 {[%clk 0:02:56]} 5. e5 {[%clk 0:02:58]}  Nd7 {[%clk 0:02:56]} 6. Bd3 {[%clk 0:02:58]}  f6 {[%clk 0:02:52]} 7. exf6 {[%clk 0:02:54]}  Qxf6 {[%clk 0:02:50]} 8. c3 {[%clk 0:02:53]}  Bd6 {[%clk 0:02:48]} 9. O-O {[%clk 0:02:49]}  O-O {[%clk 0:02:46]} 10. Qc2 {[%clk 0:02:46]}  h6 {[%clk 0:02:28]} 11. Re1 {[%clk 0:02:45]}  e5 {[%clk 0:02:28]} 12. dxe5 {[%clk 0:02:45]}  Ndxe5 {[%clk 0:02:27]} 13. Be2 {[%clk 0:02:42]}  Ng4 {[%clk 0:02:12]} 14. h3 {[%clk 0:02:37]}  Nge5 {[%clk 0:01:49]} 15. Nf1 {[%clk 0:02:13]}  Bxh3 {[%clk 0:01:34]} 16. N1h2 {[%clk 0:01:46]}  Bf5 {[%clk 0:01:22]} 17. Qb3 {[%clk 0:01:39]}  Be4 {[%clk 0:01:15]} 18. Be3 {[%clk 0:01:36]}  Kh8 {[%clk 0:01:05]} 19. Rad1 {[%clk 0:01:35]}  Rad8 {[%clk 0:00:52]} 20. Qa4 {[%clk 0:01:01]}  Nxf3+ {[%clk 0:00:46]} 21. Nxf3 {[%clk 0:00:59]}  Ne5 {[%clk 0:00:37]} 22. Bd4 {[%clk 0:00:43]}  Nxf3+ {[%clk 0:00:27]} 23. Bxf3 {[%clk 0:00:27]}  Qf4 {[%clk 0:00:25]} 24. Bxe4 {[%clk 0:00:23]}  dxe4 {[%clk 0:00:18]} 25. g3 {[%clk 0:00:16]}  Qf3 {[%clk 0:00:11]} 26. Rxe4 {[%clk 0:00:07]}  Bxg3 {[%clk 0:00:10]} 27. Bxg7+ {[%clk 0:00:05]}  Kxg7 {[%clk 0:00:09]} 28. Rg4+ {[%clk 0:00:05]}  Kh8 {[%clk 0:00:09]} 29. Rf1 {[%clk 0:00:02]}  Bxf2+ {[%clk 0:00:08]} 30. Kh2 {[%clk 0:00:03]}  Bg3+ {[%clk 0:00:05]} 31. Rxg3 {[%clk 0:00:02]}  Qxf1 {[%clk 0:00:04]} 32. Qg4 {[%clk 0:00:03]}  Rd2+ {[%clk 0:00:03]} 33. Rg2 {[%clk 0:00:03]}  Rxg2+ {[%clk 0:00:03]} 34. Qxg2 {[%clk 0:00:02]}  Rf2 {[%clk 0:00:03]} 0-1


[Site "https://www.chess.com"]

[Event "Titled Tuesday Blitz May 30 Early 2023"]
[White "Ladan, Nicholas"]
[Black "Sanchez, Robert"]
[WhiteFideId "30918855"]
[BlackFideId "2034360"]
[WhiteElo "2167"]
[BlackElo "1826"]
[Result "1-0"]
[Round "03"]
[TimeControl "180+2"]
[Date "2023.05.30"]
[WhiteClock "0:00:12"]
[BlackClock "0:01:19"]

1. a3 {[%clk 0:03:00]}  d5 {[%clk 0:02:59]} 2. b4 {[%clk 0:02:59]}  e5 {[%clk 0:03:00]} 3. Bb2 {[%clk 0:03:00]}  Bd6 {[%clk 0:03:00]} 4. f4 {[%clk 0:02:41]}  Nd7 {[%clk 0:02:57]} 5. Nf3 {[%clk 0:02:40]}  Qe7 {[%clk 0:02:56]} 6. fxe5 {[%clk 0:02:34]}  Nxe5 {[%clk 0:02:56]} 7. e3 {[%clk 0:02:30]}  Nf6 {[%clk 0:02:52]} 8. Be2 {[%clk 0:02:29]}  c6 {[%clk 0:02:50]} 9. O-O {[%clk 0:02:23]}  Bd7 {[%clk 0:02:48]} 10. Qe1 {[%clk 0:01:47]}  O-O-O {[%clk 0:02:47]} 11. Nxe5 {[%clk 0:01:43]}  Bxe5 {[%clk 0:02:47]} 12. Bxe5 {[%clk 0:01:44]}  Qxe5 {[%clk 0:02:48]} 13. Nc3 {[%clk 0:01:45]}  h5 {[%clk 0:02:46]} 14. Qh4 {[%clk 0:01:36]}  Bg4 {[%clk 0:02:29]} 15. Rae1 {[%clk 0:01:20]}  d4 {[%clk 0:02:22]} 16. exd4 {[%clk 0:00:53]}  Qxd4+ {[%clk 0:02:22]} 17. Qf2 {[%clk 0:00:43]}  Qxd2 {[%clk 0:02:22]} 18. Bxg4+ {[%clk 0:00:41]}  hxg4 {[%clk 0:02:23]} 19. Qxd2 {[%clk 0:00:34]}  Rxd2 {[%clk 0:02:24]} 20. Ne4 {[%clk 0:00:35]}  Nxe4 {[%clk 0:02:17]} 21. Rxe4 {[%clk 0:00:35]}  Rxc2 {[%clk 0:02:12]} 22. Rxg4 {[%clk 0:00:23]}  Rd8 {[%clk 0:01:44]} 23. Rxg7 {[%clk 0:00:22]}  Rd7 {[%clk 0:01:41]} 24. h4 {[%clk 0:00:21]}  b6 {[%clk 0:01:33]} 25. h5 {[%clk 0:00:17]}  Rc4 {[%clk 0:01:25]} 26. Rfxf7 {[%clk 0:00:16]}  Rd1+ {[%clk 0:01:21]} 27. Kh2 {[%clk 0:00:16]}  Rh4+ {[%clk 0:01:21]} 28. Kg3 {[%clk 0:00:15]}  Rxh5 {[%clk 0:01:19]} 29. Rxa7 {[%clk 0:00:12]} 1-0


[Site "https://www.chess.com"]

[Event "Titled Tuesday Blitz May 30 Early 2023"]
[White "Ilamparthi A R"]
[Black "Osiecki, Stanislaw"]
[WhiteFideId "45015775"]
[BlackFideId "1102990"]
[WhiteElo "2348"]
[BlackElo "2088"]
[Result "1-0"]
[Round "03"]
[TimeControl "180+2"]
[Date "2023.05.30"]
[WhiteClock "0:00:17"]
[BlackClock "0:00:00"]

1. e4 {[%clk 0:03:00]}  e6 {[%clk 0:02:57]} 2. d3 {[%clk 0:03:00]}  d5 {[%clk 0:02:57]} 3. Nd2 {[%clk 0:03:00]}  c5 {[%clk 0:02:57]} 4. Ngf3 {[%clk 0:03:01]}  d4 {[%clk 0:02:56]} 5. g3 {[%clk 0:03:00]}  Nc6 {[%clk 0:02:56]} 6. Bg2 {[%clk 0:03:00]}  e5 {[%clk 0:02:57]} 7. O-O {[%clk 0:03:00]}  Bg4 {[%clk 0:02:56]} 8. h3 {[%clk 0:02:59]}  Bh5 {[%clk 0:02:56]} 9. a4 {[%clk 0:02:56]}  Bd6 {[%clk 0:02:55]} 10. Nc4 {[%clk 0:02:54]}  Bc7 {[%clk 0:02:55]} 11. Qd2 {[%clk 0:02:48]}  h6 {[%clk 0:02:53]} 12. Nh4 {[%clk 0:02:47]}  Nge7 {[%clk 0:02:46]} 13. Nf5 {[%clk 0:02:38]}  Nxf5 {[%clk 0:02:43]} 14. exf5 {[%clk 0:02:38]}  f6 {[%clk 0:02:43]} 15. b3 {[%clk 0:02:20]}  Bf7 {[%clk 0:02:41]} 16. Ba3 {[%clk 0:02:20]}  Qe7 {[%clk 0:02:39]} 17. Rae1 {[%clk 0:01:51]}  O-O {[%clk 0:02:38]} 18. Bc1 {[%clk 0:01:47]}  Rab8 {[%clk 0:02:22]} 19. Qe2 {[%clk 0:01:44]}  Nb4 {[%clk 0:02:14]} 20. f4 {[%clk 0:01:42]}  Bxc4 {[%clk 0:02:03]} 21. bxc4 {[%clk 0:01:37]}  Rfe8 {[%clk 0:02:03]} 22. Rf2 {[%clk 0:01:34]}  Qd7 {[%clk 0:01:57]} 23. fxe5 {[%clk 0:01:24]}  Rxe5 {[%clk 0:01:51]} 24. Be4 {[%clk 0:01:23]}  Qxa4 {[%clk 0:01:42]} 25. Qg4 {[%clk 0:01:15]}  Kh8 {[%clk 0:01:30]} 26. Qh5 {[%clk 0:00:36]}  Qd7 {[%clk 0:01:22]} 27. Ref1 {[%clk 0:00:31]}  Qe8 {[%clk 0:01:16]} 28. Qh4 {[%clk 0:00:28]}  Qf7 {[%clk 0:01:13]} 29. g4 {[%clk 0:00:22]}  Kg8 {[%clk 0:01:09]} 30. Rg2 {[%clk 0:00:21]}  Kf8 {[%clk 0:01:01]} 31. Qf2 {[%clk 0:00:20]}  a5 {[%clk 0:00:51]} 32. h4 {[%clk 0:00:20]}  Ke7 {[%clk 0:00:49]} 33. g5 {[%clk 0:00:20]}  hxg5 {[%clk 0:00:49]} 34. hxg5 {[%clk 0:00:20]}  fxg5 {[%clk 0:00:41]} 35. Bxg5+ {[%clk 0:00:20]}  Kd7 {[%clk 0:00:40]} 36. Bf4 {[%clk 0:00:18]}  Rh8 {[%clk 0:00:33]} 37. Qg3 {[%clk 0:00:18]}  Qe7 {[%clk 0:00:17]} 38. Qxg7 {[%clk 0:00:14]}  Qxg7 {[%clk 0:00:13]} 39. Rxg7+ {[%clk 0:00:14]}  Kc8 {[%clk 0:00:12]} 40. Rxc7+ {[%clk 0:00:14]}  Kxc7 {[%clk 0:00:10]} 41. Bxe5+ {[%clk 0:00:15]}  Kb6 {[%clk 0:00:10]} 42. Bxh8 {[%clk 0:00:16]}  Nxc2 {[%clk 0:00:10]} 43. f6 {[%clk 0:00:16]}  Ne3 {[%clk 0:00:10]} 44. Rb1+ {[%clk 0:00:17]}  Ka6 {[%clk 0:00:00]} 45. f7 {[%clk 0:00:17]} 1-0


[Site "https://www.chess.com"]